[Event "Romanian-ch Women 2022"]
[Site "Eforie Nord"]
[Date "2022.02.22"]
[Round "3.11"]
[White "Schiopu, Oana-Magdalena"]
[Black "Nikanova, Ekaterina"]
[Result "0-1"]
[ECO "B04"]
[WhiteElo "1534"]
[BlackElo "1935"]
[Annotator "ChessBase"]
[PlyCount "100"]
[EventDate "2022.02.20"]
[EventType "swiss"]
[EventCountry "ROU"]
[SourceTitle "playchess.com"]
[Source "ChessBase"]
[SourceQuality "1"]
[TimeControl "40/5400+30:900+30"]

1. e4 {[%emt 0:00:04]} Nf6 {[%emt 0:00:50]} 2. e5 {[%emt 0:00:39]} Nd5 {[%emt 0:00:06]} 3. d4 {[%emt 0:00:48]} d6 {[%emt 0:00:05]} 4. exd6 {[%emt 0:02:29]} cxd6 {[%emt 0:00:46]} 5. Nf3 {[%emt 0:01:24]} Nb6 {[%emt 0:01:11]} 6. Nc3 {[%emt 0:03:16]} g6 {[%emt 0:01:37]} 7. Bb5+ {[%emt 0:05:24]} Bd7 {[%emt 0:08:43]} 8. O-O {[%emt 0:01:58]} Bg7 {[%emt 0:03:53]} 9. Bxd7+ {[%emt 0:06:40]} Qxd7 {[%emt 0:00:45]} 10. Re1 {[%emt 0:01:13]} h6 {[%emt 0:05:59]} 11. Bf4 {[%emt 0:05:08]} O-O {[%emt 0:02:21]} 12. Qe2 {[%emt 0:10:30]} Re8 {[%emt 0:04:21]} 13. Rad1 {[%emt 0:03:28]} Nc6 {[%emt 0:07:07]} 14. Qd2 {[%emt 0:06:36]} g5 {[%emt 0:04:20]} 15. Be3 {[%emt 0:01:52]} Nc4 {[%emt 0:08:33]} 16. Qc1 {[%emt 0:00:35]} d5 {[%emt 0:02:05]} 17. b3 {[%emt 0:04:00]} Nb6 {[%emt 0:03:56]} 18. h4 {[%emt 0:04:59]} f6 {[%emt 0:03:54]} 19. hxg5 {[%emt 0:02:28]} hxg5 {[%emt 0:03:13]} 20. Bxg5 {[%emt 0:00:59]} fxg5 {[%emt 0:01:22]} 21. Qxg5 {[%emt 0:00:17]} Rf8 {[%emt 0:04:58]} 22. Nh4 {[%emt 0:04:08]} Qd6 {[%emt 0:07:25]} 23. Ng6 {[%emt 0:05:32]} Rf7 {[%emt 0:04:27]} 24. Ne5 {[%emt 0:06:39]} Nxe5 {[%emt 0:01:25]} 25. dxe5 {[%emt 0:00:08]} Qc5 {[%emt 0:05:47]} 26. Qe3 {[%emt 0:03:32]} Qxe3 {[%emt 0:01:42]} 27. Rxe3 {[%emt 0:00:07]} e6 {[%emt 0:02:45]} 28. g3 {[%emt 0:01:45]} Bf8 {[%emt 0:01:35]} 29. Kg2 {[%emt 0:01:16]} Rc8 {[%emt 0:01:15]} 30. Rd4 {[%emt 0:02:43]} Bc5 {[%emt 0:01:51]} 31. Rg4+ {[%emt 0:00:10]} Rg7 {[%emt 0:00:53]} 32. Rxg7+ {[%emt 0:00:35]} Kxg7 {[%emt 0:00:03]} 33. Re2 {[%emt 0:00:27]} Bxf2 {[%emt 0:03:57]} 34. Nb5 {[%emt 0:06:12]} Bc5 {[%emt 0:00:54]} 35. Nxa7 {[%emt 0:00:29]} Ra8 {[%emt 0:00:59]} 36. Nb5 {[%emt 0:00:15]} Rxa2 {[%emt 0:00:44]} 37. g4 {[%emt 0:00:57]} Ra1 {[%emt 0:01:42]} 38. Nd6 {[%emt 0:01:52]} Bxd6 {[%emt 0:00:59]} 39. exd6 {[%emt 0:00:06]} Kf7 {[%emt 0:00:19]} 40. g5 {[%emt 0:00:00]} Ra8 {[%emt 0:00:00]} 41. g6+ {[%emt 0:01:04]} Kf6 {[%emt 0:02:13]} 42. Kf3 {[%emt 0:01:24]} Rg8 {[%emt 0:00:57]} 43. Ke3 {[%emt 0:00:45]} e5 {[%emt 0:05:08]} 44. Rh2 {[%emt 0:03:07]} Rxg6 {[%emt 0:01:37]} 45. Rh7 {[%emt 0:00:12]} Rg3+ {[%emt 0:01:29]} 46. Kd2 {[%emt 0:00:07]} Rg7 {[%emt 0:00:31]} 47. Rh6+ {[%emt 0:00:30]} Kg5 {[%emt 0:03:14]} 48. Re6 {[%emt 0:00:23]} Nd7 {[%emt 0:00:23]} 49. c4 {[%emt 0:01:15]} dxc4 {[%emt 0:00:26]} 50. bxc4 {[%emt 0:00:08]} Rg6 {[%emt 0:01:00]} 0-1

[Event "Romanian-ch Women 2022"]
[Site "Eforie Nord"]
[Date "2022.02.22"]
[Round "4.1"]
[White "Sandu, Mihaela"]
[Black "Bulmaga, Irina"]
[Result "1-0"]
[ECO "C54"]
[WhiteElo "2269"]
[BlackElo "2390"]
[Annotator "NA"]
[PlyCount "119"]
[EventDate "2022.02.20"]
[EventType "swiss"]
[EventCountry "ROU"]
[SourceTitle "playchess.com"]
[Source "ChessBase"]
[SourceQuality "1"]
[TimeControl "40/5400+30:900+30"]

1. e4 {[%emt 0:00:03]} e5 {[%emt 0:00:12]} 2. Nf3 {[%emt 0:00:05]} Nc6 {[%emt 0:00:07]} 3. Bc4 {[%emt 0:00:03]} Bc5 {[%emt 0:00:10]} 4. c3 {[%emt 0:00:11]} Nf6 {[%emt 0:00:13]} 5. d3 {[%emt 0:00:09]} d6 {[%emt 0:00:23]} 6. Bb3 {[%emt 0:00:49]} a5 {[%emt 0:01:53]} 7. Nbd2 {[%emt 0:01:34]} O-O {[%emt 0:00:22]} 8. O-O {[%emt 0:00:27]} h6 {[%emt 0:01:47]} 9. h3 {[%emt 0:01:53]} Be6 {[%emt 0:03:10]} 10. Re1 {[%emt 0:05:29]} Bxb3 {[%emt 0:02:13]} 11. Qxb3 {[%emt 0:00:16]} Qd7 {[%emt 0:01:26]} 12. Nf1 {[%emt 0:04:16]} a4 {[%emt 0:02:22]} 13. Qc2 {[%emt 0:01:54]} Rfe8 {[%emt 0:06:02]} 14. Rb1 {[%emt 0:11:18]} d5 {[%emt 0:06:24]} 15. b4 {[%emt 0:00:35]} axb3 {[%emt 0:02:12]} 16. axb3 {[%emt 0:00:04]} b5 {[%emt 0:11:58]} 17. b4 {[%emt 0:01:48]} Bf8 {[%emt 0:08:41]} 18. Bd2 {[%emt 0:04:17]} dxe4 {[%emt 0:07:29]} 19. dxe4 {[%emt 0:02:47]} Rad8 {[%emt 0:02:23]} 20. Ra1 {[%emt 0:13:24]} Nb8 {[%emt 0:04:06]} 21. c4 {[%emt 0:06:59]} c5 {[%emt 0:22:32]} 22. bxc5 {[%emt 0:01:03]} Rc8 {[%emt 0:00:19]} 23. Qb2 {[%emt 0:04:27]} bxc4 {[%emt 0:02:22]} 24. Nxe5 {[%emt 0:01:43]} Qe6 {[%emt 0:01:12]} 25. Bc3 {[%emt 0:04:10]} Nbd7 {[%emt 0:00:48]} 26. Nxd7 {[%emt 0:02:38]} Nxd7 {[%emt 0:00:09]} 27. Re3 {[%emt 0:02:45]} Nxc5 $15 {[%emt 0:02:30]} 28. Ng3 {[%emt 0:03:33]} Nd3 {[%emt 0:05:06]} 29. Qe2 {[%emt 0:00:06]} g6 {[%emt 0:04:15]} 30. Nf5 {[%emt 0:08:56]} Ra8 {[%emt 0:00:49]} 31. Rxa8 {[%emt 0:01:45]} Rxa8 {[%emt 0:00:02]} 32. Rg3 {[%emt 0:00:38]} Ra3 {[%emt 0:01:48]} 33. Bd4 {[%emt 0:04:38]} Nf4 {[%emt 0:00:19]} 34. Qb2 {[%emt 0:01:52]} Rxg3 {[%emt 0:01:02]} 35. Nxg3 {[%emt 0:00:07]} Qc6 {[%emt 0:00:40]} 36. Qd2 {[%emt 0:02:29]} Ne6 {[%emt 0:00:12]} 37. Bc3 {[%emt 0:02:29]} Qd6 {[%emt 0:00:13]} 38. Qe3 {[%emt 0:01:05]} Qd1+ {[%emt 0:00:24]} 39. Kh2 {[%emt 0:00:07]} Bc5 {[%emt 0:01:06]} 40. Qxh6 {[%emt 0:00:00]} Bd4 {[%emt 0:00:00]} 41. Bxd4 {[%emt 0:05:14]} Qxd4 {[%emt 0:02:07]} 42. Qe3 {[%emt 0:05:50]} Qe5 {[%emt 0:05:49]} 43. Qc1 {[%emt 0:01:00]} c3 {[%emt 0:01:02]} 44. Kg1 {[%emt 0:09:33]} Nf4 {[%emt 0:00:10]} 45. Qc2 {[%emt 0:00:16]} Qa5 {[%emt 0:06:35]} 46. Nf1 {[%emt 0:01:09]} Qa1 {[%emt 0:00:25]} 47. g3 {[%emt 0:00:25]} Qb2 {[%emt 0:02:38]} 48. Ne3 {[%emt 0:00:13]} Ne2+ {[%emt 0:00:28]} 49. Kg2 {[%emt 0:00:31]} Nd4 {[%emt 0:00:13]} 50. Qa4 {[%emt 0:00:24]} c2 {[%emt 0:01:04]} 51. Qe8+ {[%emt 0:00:09]} Kg7 {[%emt 0:00:33]} 52. Qe5+ {[%emt 0:00:08]} f6 {[%emt 0:00:17]} 53. Qe7+ {[%emt 0:00:28]} Kg8 {[%emt 0:00:20]} 54. Ng4 {[%emt 0:02:31]} Ne2 {[%emt 0:00:55]} 55. Nh6+ {[%emt 0:00:19]} Kh8 {[%emt 0:00:02]} 56. Nf7+ {[%emt 0:00:07]} Kg8 {[%emt 0:00:16]} 57. Nh6+ {[%emt 0:00:53]} Kh8 {[%emt 0:00:01]} 58. Qf8+ {[%emt 0:00:58]} Kh7 {[%emt 0:00:02]} 59. Qg8+ {[%emt 0:00:08]} Kxh6 {[%emt 0:00:08]} 60. Qh8+ {[%emt 0:00:04]} 1-0

[Event "Romanian-ch Women 2022"]
[Site "Eforie Nord"]
[Date "2022.02.22"]
[Round "4.3"]
[White "Baciu, Anca-Otilia"]
[Black "Peptan, Corina-Isabela"]
[Result "0-1"]
[ECO "B45"]
[WhiteElo "2014"]
[BlackElo "2384"]
[Annotator "NA"]
[PlyCount "58"]
[EventDate "2022.02.20"]
[EventType "swiss"]
[EventCountry "ROU"]
[SourceTitle "playchess.com"]
[Source "ChessBase"]
[SourceQuality "1"]
[TimeControl "40/5400+30:900+30"]

1. e4 {[%emt 0:00:04]} c5 {[%emt 0:00:09]} 2. Nf3 {[%emt 0:00:07]} e6 {[%emt 0:00:18]} 3. d4 {[%emt 0:00:08]} cxd4 {[%emt 0:00:06]} 4. Nxd4 {[%emt 0:00:07]} Nc6 {[%emt 0:00:03]} 5. Nc3 {[%emt 0:00:33]} Qc7 {[%emt 0:00:20]} 6. Nxc6 {[%emt 0:03:13]} bxc6 {[%emt 0:03:03]} 7. Bd3 {[%emt 0:00:11]} Nf6 {[%emt 0:00:07]} 8. O-O {[%emt 0:05:55]} Be7 {[%emt 0:08:46]} 9. Qe2 {[%emt 0:02:20]} e5 {[%emt 0:07:46]} 10. f4 {[%emt 0:06:02]} d6 {[%emt 0:00:26]} 11. Kh1 {[%emt 0:01:09]} O-O {[%emt 0:01:25]} 12. Bd2 {[%emt 0:06:11]} Rb8 {[%emt 0:17:06]} 13. b3 {[%emt 0:06:50]} exf4 {[%emt 0:03:34]} 14. Bxf4 {[%emt 0:03:24]} Ng4 {[%emt 0:01:37]} 15. Nd1 {[%emt 0:22:19]} Bf6 {[%emt 0:03:57]} 16. Rb1 {[%emt 0:00:07]} Be5 $11 {[%emt 0:14:04]} 17. Bxe5 {[%emt 0:04:08]} Nxe5 {[%emt 0:00:12]} 18. Ne3 {[%emt 0:00:08]} Re8 {[%emt 0:01:46]} 19. Qh5 {[%emt 0:13:09]} d5 {[%emt 0:17:38]} 20. exd5 {[%emt 0:09:37]} Nxd3 {[%emt 0:00:09]} 21. d6 {[%emt 0:00:05]} Qb7 {[%emt 0:02:07]} 22. Nc4 {[%emt 0:00:31]} g6 {[%emt 0:04:08]} 23. Qg5 {[%emt 0:10:59]} Nb4 {[%emt 0:02:49]} 24. d7 {[%emt 0:01:11]} Qxd7 {[%emt 0:00:31]} 25. Qf4 {[%emt 0:00:22]} Ba6 {[%emt 0:03:11]} 26. Rbd1 {[%emt 0:03:58]} Nd5 {[%emt 0:00:27]} 27. Ne5 {[%emt 0:00:18]} Nxf4 {[%emt 0:04:03]} 28. Nxd7 {[%emt 0:00:09]} Bxf1 {[%emt 0:00:04]} 29. Rxf1 {[%emt 0:00:25]} Ne6 {[%emt 0:00:30]} 0-1

[Event "Romanian-ch Women 2022"]
[Site "Eforie Nord"]
[Date "2022.02.22"]
[Round "4.4"]
[White "Hoanca, Alexia-Ioana"]
[Black "Cosma, Elena-Luminita"]
[Result "0-1"]
[ECO "C00"]
[WhiteElo "1710"]
[BlackElo "2281"]
[Annotator "NA"]
[PlyCount "80"]
[EventDate "2022.02.20"]
[EventType "swiss"]
[EventCountry "ROU"]
[SourceTitle "playchess.com"]
[Source "ChessBase"]
[SourceQuality "1"]
[TimeControl "40/5400+30:900+30"]

1. e4 {[%emt 0:00:02]} e6 {[%emt 0:00:05]} 2. d3 {[%emt 0:00:07]} d5 {[%emt 0:00:09]} 3. Nd2 {[%emt 0:00:06]} Nf6 {[%emt 0:00:10]} 4. Ngf3 {[%emt 0:00:13]} a5 {[%emt 0:00:09]} 5. e5 {[%emt 0:04:02]} Nfd7 {[%emt 0:00:07]} 6. d4 {[%emt 0:00:06]} c5 {[%emt 0:00:25]} 7. c3 {[%emt 0:00:21]} Nc6 {[%emt 0:02:16]} 8. Bd3 {[%emt 0:00:53]} cxd4 {[%emt 0:04:33]} 9. cxd4 {[%emt 0:01:32]} Qb6 {[%emt 0:10:20]} 10. O-O {[%emt 0:02:04]} Be7 {[%emt 0:01:38]} 11. Re1 {[%emt 0:02:20]} h6 {[%emt 0:08:22]} 12. a3 {[%emt 0:04:23]} (12. a4 $11 {might be stronger.}) 12... Nxd4 $11 {[%emt 0:07:31]} (12... g5 $1 $15) 13. Nxd4 {[%emt 0:02:36]} Qxd4 {[%emt 0:00:05]} 14. Nf3 {[%emt 0:00:31]} Qb6 {[%emt 0:00:14]} 15. Be3 {[%emt 0:02:59]} Bc5 {[%emt 0:01:50]} 16. Rb1 {[%emt 0:02:23]} Bxe3 {[%emt 0:26:04]} 17. Rxe3 {[%emt 0:00:32]} O-O {[%emt 0:00:41]} 18. Ng5 {[%emt 0:27:59]} f5 {[%emt 0:10:47]} 19. exf6 {[%emt 0:06:14]} Nxf6 {[%emt 0:00:05]} 20. Nf3 {[%emt 0:05:16]} Ng4 {[%emt 0:01:56]} 21. Re2 {[%emt 0:07:34]} Qd6 {[%emt 0:01:14]} 22. Rd2 {[%emt 0:05:26]} Bd7 {[%emt 0:01:47]} 23. h3 {[%emt 0:08:30]} Ne5 {[%emt 0:01:53]} 24. Nxe5 {[%emt 0:00:23]} Qxe5 {[%emt 0:00:04]} 25. Qe2 {[%emt 0:05:07]} Qxe2 {[%emt 0:00:59]} 26. Bxe2 {[%emt 0:00:47]} Rac8 {[%emt 0:00:51]} 27. Re1 {[%emt 0:00:34]} Rf6 {[%emt 0:01:49]} 28. Bg4 {[%emt 0:00:47]} Kf7 {[%emt 0:00:45]} 29. Rde2 {[%emt 0:01:17]} Ke7 {[%emt 0:00:35]} 30. f4 {[%emt 0:06:10]} Kd6 {[%emt 0:01:19]} 31. f5 {[%emt 0:00:10]} exf5 {[%emt 0:00:44]} 32. Bf3 {[%emt 0:00:06]} Re6 {[%emt 0:01:24]} 33. Rxe6+ {[%emt 0:01:07]} Bxe6 {[%emt 0:00:06]} 34. g4 {[%emt 0:00:07]} Rc2 {[%emt 0:02:58]} 35. gxf5 {[%emt 0:02:28]} Bxf5 {[%emt 0:00:09]} 36. Rd1 {[%emt 0:00:10]} Be6 {[%emt 0:00:29]} 37. b4 {[%emt 0:00:32]} Rc3 {[%emt 0:01:31]} 38. Bg2 {[%emt 0:00:43]} Rxa3 {[%emt 0:00:23]} 39. bxa5 {[%emt 0:00:07]} Rxa5 {[%emt 0:00:09]} 40. Rb1 {[%emt 0:00:00]} b5 {[%emt 0:00:00]} 0-1

[Event "Romanian-ch Women 2022"]
[Site "Eforie Nord"]
[Date "2022.02.22"]
[Round "4.7"]
[White "Lehaci, Miruna-Daria"]
[Black "Pitigoi, Sabina-Andreea"]
[Result "1-0"]
[ECO "A45"]
[WhiteElo "2125"]
[BlackElo "1766"]
[Annotator "NA"]
[PlyCount "81"]
[EventDate "2022.02.20"]
[EventType "swiss"]
[EventCountry "ROU"]
[SourceTitle "playchess.com"]
[Source "ChessBase"]
[SourceQuality "1"]
[TimeControl "40/5400+30:900+30"]

1. d4 {[%emt 0:00:03]} Nf6 {[%emt 0:00:07]} 2. Bf4 {[%emt 0:00:05]} e6 {[%emt 0:00:06]} 3. e3 {[%emt 1:31:52]} c5 {[%emt 0:00:10]} 4. Nc3 {[%emt 0:00:00]} a6 {[%emt 1:32:07]} 5. Qf3 {[%emt 0:01:00]} cxd4 {[%emt 0:00:00]} 6. exd4 {[%emt 0:00:00]} Nc6 {[%emt 0:00:00]} 7. O-O-O {[%emt 0:00:00]} d5 {[%emt 0:00:00]} 8. g4 {[%emt 0:00:00]} Bb4 {[%emt 0:00:00]} 9. g5 {[%emt 0:00:00]} Bxc3 {[%emt 0:00:00]} 10. Qxc3 {[%emt 0:00:00]} Ne4 {[%emt 0:00:00]} 11. Qe3 {[%emt 0:00:00]} b5 {[%emt 0:00:00]} 12. Ne2 {[%emt 0:00:00]} O-O {[%emt 0:00:00]} 13. Kb1 {[%emt 0:00:00]} Bb7 {[%emt 0:00:00]} 14. Ng3 {[%emt 0:00:00]} Rc8 {[%emt 0:00:00]} 15. Bd3 {[%emt 0:00:00]} Nb4 {[%emt 0:00:00]} 16. Qe1 {[%emt 0:00:00]} a5 {[%emt 0:00:00]} 17. f3 {[%emt 0:00:00]} Nd6 {[%emt 0:00:00]} 18. h4 {[%emt 0:00:00]} Qc7 {[%emt 0:00:00]} 19. Rh2 {[%emt 0:00:00]} Qb6 {[%emt 0:00:00]} 20. Be5 {[%emt 0:00:00]} Nxd3 {[%emt 0:00:00]} 21. Rxd3 {[%emt 0:00:00]} Nf5 {[%emt 0:00:00]} 22. h5 {[%emt 0:00:00]} Rc4 {[%emt 0:00:00]} 23. h6 {[%emt 0:00:00]} g6 {[%emt 0:00:00]} 24. Nf1 {[%emt 0:00:00]} Ba6 {[%emt 0:00:00]} 25. Ne3 {[%emt 0:00:00]} Nxe3 {[%emt 0:00:00]} 26. Qxe3 {[%emt 0:00:00]} b4 {[%emt 0:00:00]} 27. Qf4 {[%emt 0:00:00]} Qd8 {[%emt 0:00:00]} 28. Bd6 {[%emt 0:00:00]} Rc6 {[%emt 0:00:49]} 29. Bxf8 {[%emt 0:00:00]} Bxd3 {[%emt 0:01:43]} 30. Bxb4 {[%emt 0:00:34]} Rxc2 {[%emt 0:04:02]} 31. Rxc2 {[%emt 0:00:24]} axb4 {[%emt 0:01:11]} 32. Qe5 {[%emt 0:00:50]} Bxc2+ {[%emt 0:01:02]} 33. Kxc2 {[%emt 0:00:04]} Kf8 {[%emt 0:00:42]} 34. Qh8+ {[%emt 0:01:11]} Ke7 {[%emt 0:00:05]} 35. Qxd8+ {[%emt 0:00:03]} Kxd8 {[%emt 0:00:09]} 36. Kb3 {[%emt 0:00:04]} Kc7 {[%emt 0:01:56]} 37. Kxb4 {[%emt 0:00:05]} Kb6 {[%emt 0:00:19]} 38. f4 {[%emt 0:00:12]} Ka6 {[%emt 0:00:55]} 39. a4 {[%emt 0:00:04]} Kb6 {[%emt 0:00:05]} 40. a5+ {[%emt 0:00:00]} Ka6 {[%emt 0:00:00]} 41. b3 {[%emt 0:00:14]} 1-0

[Event "Romanian-ch Women 2022"]
[Site "Eforie Nord"]
[Date "2022.02.22"]
[Round "4.9"]
[White "Anghel, Maria"]
[Black "Panainte, Andreea-Bianca"]
[Result "1/2-1/2"]
[ECO "E12"]
[WhiteElo "1834"]
[BlackElo "1865"]
[Annotator "NA"]
[PlyCount "83"]
[EventDate "2022.02.20"]
[EventType "swiss"]
[EventCountry "ROU"]
[SourceTitle "playchess.com"]
[Source "ChessBase"]
[SourceQuality "1"]
[TimeControl "40/5400+30:900+30"]

1. d4 {[%emt 0:00:03]} Nf6 {[%emt 0:00:08]} 2. Nf3 {[%emt 0:00:11]} e6 {[%emt 0:00:06]} 3. c4 {[%emt 0:00:11]} b6 {[%emt 0:00:17]} 4. a3 {[%emt 0:00:49]} Bb7 {[%emt 0:00:08]} 5. Nc3 {[%emt 0:00:13]} Be7 {[%emt 0:02:25]} 6. d5 {[%emt 0:00:15]} O-O {[%emt 0:03:36]} 7. e4 {[%emt 0:00:38]} d6 {[%emt 0:01:17]} 8. Bd3 {[%emt 0:02:32]} a5 {[%emt 0:11:56]} 9. h3 {[%emt 0:07:44]} Na6 {[%emt 0:01:22]} 10. Be3 {[%emt 0:02:22]} Nd7 {[%emt 0:08:24]} 11. Bc2 {[%emt 0:11:34]} Bf6 {[%emt 0:04:31]} 12. Nd4 {[%emt 0:09:53]} Re8 {[%emt 0:02:15]} 13. O-O {[%emt 0:03:22]} Nac5 {[%emt 0:04:00]} 14. b4 {[%emt 0:07:34]} axb4 {[%emt 0:00:29]} 15. axb4 {[%emt 0:00:42]} Na6 {[%emt 0:01:28]} 16. Rb1 {[%emt 0:02:38]} Ne5 {[%emt 0:00:46]} 17. Qe2 {[%emt 0:05:33]} Ng6 {[%emt 0:07:31]} 18. Ba4 {[%emt 0:12:36]} Re7 {[%emt 0:02:41]} 19. Qd2 {[%emt 0:11:35]} Bxd4 {[%emt 0:04:36]} 20. Bxd4 {[%emt 0:00:39]} e5 {[%emt 0:00:06]} 21. Be3 {[%emt 0:00:32]} Qf8 {[%emt 0:03:40]} 22. c5 {[%emt 0:04:00]} bxc5 {[%emt 0:05:14]} 23. bxc5 {[%emt 0:00:38]} Bc8 {[%emt 0:00:09]} 24. c6 {[%emt 0:05:17]} f5 {[%emt 0:00:40]} 25. f3 {[%emt 0:01:27]} f4 {[%emt 0:00:55]} 26. Bf2 {[%emt 0:00:13]} Qf6 {[%emt 0:00:22]} 27. Bb5 {[%emt 0:01:27]} Qg5 {[%emt 0:00:41]} 28. Kh2 {[%emt 0:02:30]} Nc5 {[%emt 0:02:27]} 29. Bxc5 {[%emt 0:02:26]} dxc5 {[%emt 0:01:50]} 30. Bc4 {[%emt 0:01:16]} Qg3+ {[%emt 0:01:05]} 31. Kh1 {[%emt 0:00:12]} Kh8 {[%emt 0:00:32]} 32. Ra1 {[%emt 0:03:38]} Rxa1 {[%emt 0:01:54]} 33. Rxa1 {[%emt 0:00:04]} Re8 {[%emt 0:00:08]} 34. Ra8 {[%emt 0:01:31]} Nh4 {[%emt 0:01:31]} 35. Nb5 {[%emt 0:01:12]} Nxf3 {[%emt 0:04:27]} 36. gxf3 {[%emt 0:00:20]} Qxh3+ {[%emt 0:00:12]} 37. Kg1 {[%emt 0:00:39]} Qg3+ {[%emt 0:00:41]} 38. Kh1 {[%emt 0:00:30]} Qxf3+ {[%emt 0:00:28]} 39. Qg2 {[%emt 0:00:31]} Qh5+ {[%emt 0:02:05]} 40. Qh2 {[%emt 0:00:00]} Qd1+ {[%emt 0:00:00]} 41. Qg1 {[%emt 0:01:46]} Qh5+ {[%emt 0:03:57]} 42. Qh2 {[%emt 0:00:20]} 1/2-1/2

[Event "Romanian-ch Women 2022"]
[Site "Eforie Nord"]
[Date "2022.02.22"]
[Round "4.11"]
[White "Puia, Alexia-Teodora"]
[Black "Dragomirescu, Angela"]
[Result "0-1"]
[ECO "B07"]
[WhiteElo "1750"]
[BlackElo "2167"]
[Annotator "NA"]
[PlyCount "72"]
[EventDate "2022.02.20"]
[EventType "swiss"]
[EventCountry "ROU"]
[SourceTitle "playchess.com"]
[Source "ChessBase"]
[SourceQuality "1"]
[TimeControl "40/5400+30:900+30"]

1. d4 {[%emt 0:00:06]} d6 {[%emt 0:00:06]} 2. e4 {[%emt 0:00:08]} Nf6 {[%emt 0:00:05]} 3. Nc3 {[%emt 0:00:11]} g6 {[%emt 0:01:16]} 4. Bg5 {[%emt 0:00:45]} Bg7 {[%emt 0:00:37]} 5. e5 {[%emt 0:01:29]} dxe5 {[%emt 0:02:03]} 6. dxe5 {[%emt 0:00:07]} Ng4 {[%emt 0:00:06]} 7. Nd5 {[%emt 0:17:52]} c6 {[%emt 0:04:16]} 8. Nxe7 {[%emt 0:05:49]} Qa5+ {[%emt 0:00:06]} 9. Qd2 {[%emt 0:01:23]} Qxd2+ {[%emt 0:01:38]} 10. Kxd2 {[%emt 0:00:07]} Be6 {[%emt 0:01:44]} 11. Bh4 $19 {[%emt 0:10:03]} Bh6+ {[%emt 0:09:23]} 12. Ke2 {[%emt 0:10:53]} g5 {[%emt 0:01:14]} 13. Bg3 {[%emt 0:00:10]} Bg7 {[%emt 0:04:39]} 14. f4 {[%emt 0:06:51]} Kxe7 {[%emt 0:01:29]} 15. h3 {[%emt 0:00:27]} Nh6 {[%emt 0:02:31]} 16. fxg5 {[%emt 0:00:15]} Nf5 {[%emt 0:00:14]} 17. Bf4 {[%emt 0:00:54]} Nd7 {[%emt 0:12:59]} 18. Nf3 {[%emt 0:00:42]} Bd5 {[%emt 0:01:27]} 19. Rd1 {[%emt 0:04:54]} h5 {[%emt 0:14:06]} 20. Kf2 {[%emt 0:04:13]} Nc5 {[%emt 0:05:19]} 21. Bd3 {[%emt 0:16:08]} Nxd3+ {[%emt 0:03:49]} 22. Rxd3 {[%emt 0:00:15]} Be4 {[%emt 0:00:49]} 23. Rb3 {[%emt 0:01:49]} c5 {[%emt 0:00:12]} 24. Re1 {[%emt 0:01:06]} Bd5 {[%emt 0:08:30]} 25. Rd3 {[%emt 0:01:02]} Be6 {[%emt 0:05:51]} 26. g3 {[%emt 0:04:56]} Rac8 {[%emt 0:05:00]} 27. c3 {[%emt 0:03:20]} Rcd8 {[%emt 0:07:01]} 28. Rxd8 {[%emt 0:00:23]} Kxd8 {[%emt 0:00:07]} 29. g6 {[%emt 0:02:48]} fxg6 {[%emt 0:01:02]} 30. Ng5 {[%emt 0:00:38]} Ke7 {[%emt 0:03:15]} 31. g4 {[%emt 0:01:15]} hxg4 {[%emt 0:00:21]} 32. hxg4 {[%emt 0:00:10]} Nh6 {[%emt 0:00:13]} 33. Nxe6 {[%emt 0:00:36]} Kxe6 {[%emt 0:00:08]} 34. Kf3 {[%emt 0:00:42]} Nf7 {[%emt 0:00:27]} 35. Ke4 {[%emt 0:00:54]} Rh4 {[%emt 0:02:35]} 36. Kf3 {[%emt 0:00:33]} Nxe5+ {[%emt 0:00:59]} 0-1

[Event "Romanian-ch Women 2022"]
[Site "Eforie Nord"]
[Date "2022.02.23"]
[Round "5.6"]
[White "Obada, Ema"]
[Black "Marin, Irina-Luiza"]
[Result "1-0"]
[ECO "B15"]
[WhiteElo "2010"]
[BlackElo "2058"]
[Annotator "NA RC"]
[PlyCount "75"]
[EventDate "2022.02.20"]
[EventType "swiss"]
[EventCountry "ROU"]
[SourceTitle "playchess.com"]
[Source "ChessBase"]
[SourceQuality "1"]
[TimeControl "40/5400+30:900+30"]

1. e4 {[%emt 0:00:03]} c6 {[%emt 0:00:07]} 2. d4 {[%emt 0:00:05]} d5 {[%emt 0:00:10]} 3. e5 {[%emt 0:00:06]} g6 {[%emt 0:00:09]} 4. Nc3 {[%emt 0:00:30]} Bg7 {[%emt 0:00:24]} 5. Bf4 {[%emt 0:00:57]} f6 {[%emt 0:03:40]} 6. Qd2 $1 {[%emt 0:03:37]} fxe5 {[%emt 0:04:27]} 7. dxe5 {[%emt 0:01:31]} Nd7 {[%emt 0:06:48]} 8. Nf3 {[%emt 0:01:21]} e6 {[%emt 0:09:40]} (8... Nc5 $14) 9. O-O-O {[%emt 0:01:49]} Ne7 {[%emt 0:01:52]} 10. h4 $14 {[%emt 0:01:33]} b5 {[%emt 0:12:29]} 11. h5 {[%emt 0:04:05]} b4 {[%emt 0:01:57]} 12. Nb1 {[%emt 0:09:29]} Qc7 {[%emt 0:15:01]} 13. Re1 {[%emt 0:05:43]} a5 {[%emt 0:05:35]} 14. Bh6 {[%emt 0:11:24]} Bf8 {[%emt 0:13:37]} 15. Qg5 {[%emt 0:10:29]} Nc5 {[%emt 0:01:44]} 16. Nbd2 {[%emt 0:01:37]} Bxh6 {[%emt 0:06:18]} 17. Qxh6 {[%emt 0:00:08]} Nf5 {[%emt 0:00:25]} 18. Qf4 {[%emt 0:02:21]} gxh5 {[%emt 0:00:42]} 19. Rxh5 {[%emt 0:00:23]} Qf7 {[%emt 0:00:58]} 20. Qh2 {[%emt 0:01:02]} Ra7 {[%emt 0:01:30]} 21. g4 {[%emt 0:00:21]} Ng7 {[%emt 0:03:11]} 22. Rxh7 {[%emt 0:01:10]} Rf8 {[%emt 0:01:29]} 23. Rh8 {[%emt 0:04:10]} a4 {[%emt 0:02:07]} 24. Ng5 {[%emt 0:01:28]} Qe7 {[%emt 0:00:09]} 25. Rxf8+ {[%emt 0:00:23]} Qxf8 {[%emt 0:00:09]} 26. Nh7 {[%emt 0:00:12]} Qe7 {[%emt 0:01:01]} 27. Nf6+ {[%emt 0:01:14]} Kd8 {[%emt 0:00:12]} 28. Re3 {[%emt 0:03:06]} Kc7 {[%emt 0:01:04]} 29. Rh3 {[%emt 0:00:55]} Bd7 {[%emt 0:02:01]} 30. f4 {[%emt 0:05:38]} b3 {[%emt 0:01:09]} 31. cxb3 {[%emt 0:02:02]} axb3 {[%emt 0:00:11]} 32. a3 {[%emt 0:00:38]} Ne8 {[%emt 0:03:09]} 33. Rh7 {[%emt 0:00:51]} Qd8 {[%emt 0:00:10]} 34. Nxd7 {[%emt 0:03:25]} Nxd7 {[%emt 0:00:10]} 35. Nxb3 {[%emt 0:00:11]} Kb8 {[%emt 0:01:01]} 36. Qc2 {[%emt 0:00:47]} Rb7 {[%emt 0:02:18]} 37. Nd4 {[%emt 0:00:55]} c5 {[%emt 0:00:35]} 38. Nc6+ {[%emt 0:00:10]} 1-0